bitfinex/quotes_ETHUSD_20251026
["timestamp","ask_amount","ask_price","bid_price","bid_amount"]
[1761490995055,0.4277,4060.7,4059.8,4.01837552]
[1761490995056,0.1232,4059.9,4059.8,4.01837552]
[1761490997456,0.5509,4059.9,4059.4,0.88428233]
[1761490997680,0.5509,4059.9,4059.5,2.46330387]
[1761490997878,0.4277,4059.9,4059.7,1.5552]
[1761490998105,0.5509,4059.8,4059.4,2.4633577]
[1761490998259,0.5509,4059.8,4059.7,3.166]
[1761490998465,0.1232,4059.8,4058.8,1.54553444]
[1761490998709,0.4277,4059.7,4059.1,0.002]
[1761490998909,0.4277,4060.1,4059.1,0.002]
[1761490999065,0.1232,4059.2,4059.1,2.4656003]
[1761490999962,3.166,4060.6,4059.1,2.4656003]
[1761490999963,0.4277,4060.7,4059.1,1.04284146]
[1761491000272,0.4277,4060.7,4060.1,2.46296228]
[1761491000473,0.4277,4060.7,4060.2,2.4629238]
[1761491001365,0.4277,4060.7,4060.1,2.4629776]
[1761491001566,0.4277,4060.7,4060.0,3.165]
[1761491001567,0.74029271,4060.7,4060.0,5.62803751]
[1761491001972,3.20294837,4060.7,4060.0,3.165]
[1761491002170,0.4277,4060.6,4059.9,2.46310052]
[1761491002476,2.89039354,4060.6,4060.0,3.166]
[1761491002705,0.4277,4060.6,4060.0,3.166]
[1761491002903,0.4277,4060.5,4060.0,3.166]
[1761491003463,0.59011522,4060.6,4060.0,3.166]
[1761491003697,0.59011522,4060.6,4060.1,2.46298963]
[1761491004000,0.4277,4060.5,4059.3,0.88428233]
[1761491004324,0.4277,4060.5,4058.8,0.4331]
[1761491004325,0.4277,4060.5,4059.5,1.5552]
[1761491004604,2.46264438,4060.7,4059.9,2.46310682]
[1761491004809,0.4287,4060.8,4060.1,2.46298397]
[1761491005575,0.001,4060.8,4060.2,2.46290958]
[1761491005902,0.001,4060.8,4060.3,2.46285864]
[1761491006070,0.31357882,4060.8,4060.2,2.46291815]
[1761491006270,0.4287,4060.8,4060.0,1.5552]
[1761491006585,2.46263777,4060.7,4060.0,4.01823807]
[1761491006972,2.89033777,4060.7,4060.0,4.01823807]
[1761491008100,2.89133777,4060.7,4060.0,4.01823807]
[1761491008281,0.4287,4060.7,4060.0,4.01823807]
[1761491008611,0.4287,4060.7,4060.2,2.46288596]
[1761491008984,0.31269361,4060.6,4060.1,2.46298464]
[1761491009184,0.31269361,4060.6,4060.1,2.46297435]
[1761491009802,0.74039361,4060.6,4060.1,2.46297435]
[1761491009992,0.1232,4060.2,4060.1,2.46297435]
[1761491012636,0.1232,4060.2,4060.1,4.22717435]
[1761491013105,0.4277,4060.5,4060.2,1.5552]
[1761491013306,0.001,4060.7,4060.3,2.46283142]
[1761491013629,0.4287,4060.7,4060.2,1.5552]
[1761491013800,0.4287,4060.7,4060.1,1.5552]
[1761491015099,0.4287,4060.7,4060.2,2.46289343]
[1761491015298,0.7413959,4060.7,4060.3,3.158]
[1761491015728,0.3136959,4060.7,4060.3,3.158]
[1761491015929,0.001,4060.7,4060.3,3.158]
[1761491016130,0.4287,4060.7,4060.1,2.46294606]
[1761491016339,0.4287,4060.7,4060.4,3.158]
[1761491017332,0.4287,4060.7,4060.2,2.46292857]
[1761491017536,0.4287,4060.7,4060.3,3.157]
[1761491017732,0.74139281,4060.7,4060.3,3.157]
[1761491017940,0.4277,4060.6,4060.3,3.156]
[1761491018133,0.4277,4060.6,4059.7,2.46318298]
[1761491018339,0.4277,4060.6,4059.8,3.156]
[1761491018340,2.4628731,4060.3,4059.8,3.156]
[1761491018544,0.4429,4060.2,4059.1,0.002]
[1761491018735,2.46321771,4059.8,4059.2,3.157]
[1761491019039,2.46323718,4059.7,4059.1,0.002]
[1761491019216,2.46323718,4059.7,4059.1,3.159]
[1761491019417,0.68922372,4059.6,4059.1,3.159]
[1761491019599,0.68922372,4059.6,4059.1,0.002]
[1761491019804,2.90627233,4059.5,4059.1,0.002]
[1761491020031,2.90627233,4059.5,4059.1,1.5572]
[1761491020341,0.4429,4059.4,4059.1,1.5572]
[1761491020837,0.4429,4059.4,4059.1,0.002]
[1761491021419,0.4429,4059.4,4059.1,2.46556744]
[1761491021738,0.4429,4059.4,4059.1,0.002]
[1761491023017,0.4429,4059.4,4059.1,1.5572]
[1761491023217,0.4429,4059.4,4059.1,0.002]
[1761491023218,0.1232,4059.2,4059.1,0.002]
[1761491023422,0.42615859,4059.2,4059.1,0.002]
[1761491023743,3.3325982,4059.2,4059.1,0.002]
[1761491025712,3.8394782,4059.2,4059.1,0.002]
[1761491026107,0.86905859,4059.2,4059.1,0.002]
[1761491026544,3.3325982,4059.2,4059.1,0.002]
[1761491027244,0.86905859,4059.2,4059.1,0.002]
[1761491027847,0.42615859,4059.2,4059.1,0.002]
[1761491028150,0.1232,4059.2,4059.1,0.002]
[1761491030259,0.1232,4059.2,4059.1,5.8286003]
[1761491031862,0.1232,4059.2,4059.1,5.6196003]
[1761491034172,0.1232,4059.2,4059.1,3.156]
[1761491034675,0.1232,4059.2,4059.1,5.6196003]
[1761491035454,0.1232,4059.2,4059.1,2.4656003]
[1761491035654,0.1232,4059.2,4059.1,5.6176003]
[1761491038583,0.1232,4059.2,4059.1,2.4656003]
[1761491038744,0.1232,4059.2,4059.1,5.6156003]
[1761491040175,0.1232,4059.2,4059.1,0.002]
[1761491041749,0.1232,4059.2,4059.1,2.4656003]
[1761491042146,0.1232,4059.2,4059.1,5.6146003]
[1761491042486,3.154,4060.5,4059.7,2.46321233]
[1761491042487,0.4469,4060.5,4059.7,2.46321233]
[1761491042650,2.46275089,4060.5,4059.8,3.148]
[1761491042849,0.4469,4060.5,4059.8,5.61116978]
[1761491043171,0.1232,4059.9,4059.8,3.148]
[1761491045173,0.1232,4059.9,4059.8,5.61117552]
[1761491045482,0.1232,4059.9,4059.8,2.46317552]
[1761491045862,0.1232,4059.9,4059.8,5.61017552]
[1761491047456,0.1232,4059.9,4059.8,3.147]
[1761491047655,0.1232,4059.9,4059.8,5.60917552]
[1761491047850,0.1232,4059.9,4059.8,3.146]
[1761491048056,0.1232,4059.9,4059.8,5.60917552]
[1761491048289,0.1232,4059.9,4059.8,3.146]
[1761491048622,0.1232,4059.9,4059.8,5.60917552]
[1761491048924,0.1232,4059.9,4059.8,3.146]
[1761491049418,0.1232,4059.9,4059.8,5.60917552]
[1761491049628,0.1232,4059.9,4059.8,2.46317552]
[1761491049932,0.1232,4059.9,4059.8,5.60817552]
[1761491050136,0.1232,4059.9,4059.8,8.33504275]
[1761491050300,0.1232,4059.9,4059.8,8.12604275]
[1761491050493,0.1232,4059.9,4059.8,7.16337552]
[1761491051623,0.1232,4059.9,4059.8,7.37237552]
[1761491055627,0.1232,4059.9,4059.8,7.16337552]
[1761491055827,0.1232,4059.9,4059.8,4.01837552]
[1761491056126,0.5677,4059.9,4059.8,4.7012]
[1761491056735,0.5677,4059.9,4059.8,4.7022]
[1761491057422,0.5677,4059.9,4059.8,1.5552]
[1761491057791,0.5677,4059.9,4059.8,4.7012]
[1761491057995,0.5677,4059.9,4059.8,1.5552]
[1761491058194,0.5677,4059.9,4059.1,1.5572]
[1761491058396,0.74757547,4059.8,4059.1,0.002]
[1761491058611,2.46332226,4059.6,4059.1,0.002]
[1761491058911,2.46336074,4059.5,4059.1,0.002]
[1761491059297,2.90795038,4059.4,4059.1,0.002]
[1761491059633,0.4445,4059.4,4059.1,0.002]
[1761491059809,0.4445,4059.3,4059.1,0.002]
[1761491060011,0.73528583,4059.3,4059.1,0.002]
[1761491060430,0.4445,4059.2,4059.1,0.002]
[1761491062431,2.46288653,4060.3,4059.1,1.5572]
[1761491062432,0.50688,4060.2,4059.1,1.5572]
[1761491062634,2.46299352,4060.1,4059.1,1.5572]
[1761491062833,0.4445,4060.0,4059.1,1.5572]
[1761491063132,2.46321844,4059.8,4059.1,1.5572]
[1761491063349,3.00042255,4059.7,4059.1,1.5572]
[1761491063752,0.4445,4059.6,4059.1,2.46559547]
[1761491064046,0.4445,4059.6,4059.1,2.46554375]
[1761491065428,0.4445,4059.6,4059.2,2.46351129]
[1761491065845,0.4445,4059.6,4059.3,2.46347892]
[1761491066530,0.4445,4059.6,4059.2,2.46352052]
[1761491066976,0.4445,4059.6,4059.3,2.46346474]
[1761491067441,0.4445,4059.6,4059.2,2.46352133]
[1761491067946,0.4445,4059.6,4059.1,1.5572]
[1761491068254,0.4445,4059.6,4059.1,0.002]
[1761491068255,0.29077447,4059.5,4059.1,0.002]
[1761491068451,0.1232,4059.2,4059.1,0.002]
[1761491069459,0.5677,4059.2,4059.1,0.002]
[1761491072529,0.1232,4059.2,4059.1,0.002]
[1761491078517,0.001,4059.9,4059.1,3.144]
[1761491078809,2.90763456,4059.8,4059.2,3.142]
[1761491078975,0.5371691,4059.7,4059.2,3.142]
[1761491079320,0.9815691,4059.7,4059.1,3.144]
[1761491079464,3.44481733,4059.7,4059.1,3.144]
[1761491079660,0.4444,4059.6,4059.1,3.144]
[1761491080604,0.4444,4059.6,4059.1,0.002]
[1761491080763,2.46344234,4059.4,4059.1,0.002]
[1761491080964,0.29078423,4059.3,4059.1,0.002]
[1761491081161,0.73518423,4059.3,4059.1,0.002]
[1761491081778,0.4454,4059.2,4059.1,0.002]
[1761491082787,0.001,4059.2,4059.1,0.002]
[1761491084307,0.4454,4059.2,4059.1,0.002]
[1761491084486,0.73628417,4059.2,4059.1,0.002]
[1761491084799,0.001,4059.2,4059.1,0.002]
[1761491085189,0.4454,4059.2,4059.1,0.002]
[1761491086586,0.001,4059.2,4059.1,0.002]
[1761491087210,0.4454,4059.2,4059.1,0.002]
[1761491088208,0.73628805,4059.2,4059.1,0.002]
[1761491088507,0.85948805,4059.2,4059.1,0.002]
[1761491089104,0.85456091,4059.2,4059.1,0.002]
[1761491089309,0.56367286,4059.2,4059.1,0.002]
[1761491089541,3.02721247,4059.2,4059.1,0.002]
[1761491090507,3.53409247,4059.2,4059.1,0.002]
[1761491098307,0.1232,4059.2,4059.1,0.002]
[1761491098508,0.5676,4059.2,4059.1,0.002]
[1761491098817,3.03113961,4059.2,4059.1,0.002]
[1761491099193,0.1232,4059.2,4059.1,0.002]
[1761491100535,0.1242,4059.2,4059.1,0.002]
[1761491104226,0.1242,4059.2,4059.1,3.11406457]
[1761491104625,0.1242,4059.2,4059.1,0.65046427]
[1761491105311,0.1242,4059.2,4059.1,0.002]
[1761491106238,0.5621,4059.2,4059.1,0.002]
[1761491110037,0.1242,4059.2,4059.1,0.002]
[1761491113045,0.1242,4059.2,4059.1,2.4656003]
[1761491113245,0.001,4059.2,4059.1,2.6785003]
[1761491113557,0.001,4059.2,4059.1,3.19271814]
[1761491114252,0.001,4059.2,4059.1,4.74791814]
[1761491115123,0.001,4059.2,4059.1,4.53501814]
[1761491115446,0.001,4059.2,4059.1,4.74791814]
[1761491118070,0.001,4059.2,4059.1,7.67501814]
[1761491118221,0.001,4059.2,4059.1,7.88791814]
[1761491119060,0.001,4059.2,4059.1,4.53501814]
[1761491119360,0.001,4059.2,4059.1,7.67501814]
[1761491119866,0.001,4059.2,4059.1,7.88791814]
[1761491124872,0.001,4059.2,4059.1,8.77220047]
[1761491127191,0.001,4059.2,4059.1,8.77120047]
[1761491128165,0.001,4059.2,4059.1,5.63220047]
[1761491128365,0.001,4059.2,4059.1,8.77120047]
[1761491130401,0.001,4059.2,4059.1,8.55830047]
[1761491132193,0.001,4059.2,4059.1,8.77120047]
[1761491137906,0.001,4059.2,4059.1,8.55830047]
[1761491138105,0.001,4059.2,4059.1,8.77120047]
[1761491138408,0.001,4059.2,4059.1,7.88691814]
[1761491138774,0.001,4059.2,4059.1,7.67401814]
[1761491138980,0.001,4059.2,4059.1,7.88691814]
[1761491139613,0.001,4059.2,4059.1,8.01011814]
[1761491139886,0.001,4059.2,4059.1,7.88691814]
[1761491140178,0.001,4059.2,4059.1,8.13331814]
[1761491141181,0.001,4059.2,4059.1,8.01011814]
[1761491142373,0.001,4059.2,4059.1,9.33155258]
[1761491142909,0.001,4059.2,4059.1,9.33055258]
[1761491144380,0.001,4059.2,4059.1,6.43895258]
[1761491144784,0.001,4059.2,4059.1,9.57695258]
[1761491148115,0.001,4059.2,4059.1,8.00911814]
[1761491148300,0.001,4059.2,4059.1,8.25551814]
[1761491148509,0.001,4059.2,4059.1,8.37871814]
[1761491150097,0.001,4059.2,4059.1,12.25871814]
[1761491151146,0.001,4059.2,4059.1,8.37871814]
[1761491152035,0.001,4059.2,4059.1,12.13276711]
[1761491155108,0.001,4059.2,4059.1,11.41298711]
[1761491155314,0.001,4059.2,4059.1,11.62588711]
[1761491155731,0.001,4059.2,4059.1,8.27498711]
[1761491156019,0.001,4059.2,4059.1,9.64281814]
[1761491156632,0.001,4059.2,4059.1,8.16481814]
[1761491159440,0.001,4059.2,4059.1,5.02781814]
[1761491159739,0.001,4059.2,4059.1,8.16481814]
[1761491160323,0.001,4059.2,4059.1,5.02781814]
[1761491160622,0.001,4059.2,4059.1,8.16481814]
[1761491161027,0.001,4059.2,4059.1,4.78141814]
[1761491161226,0.001,4059.2,4059.1,7.91841814]
[1761491161427,0.4672,4059.2,4059.1,7.91841814]
[1761491162147,0.4672,4059.2,4059.1,4.78141814]
[1761491162345,0.4672,4059.2,4059.1,7.91841814]
[1761491166164,0.4672,4059.2,4059.1,7.79521814]
[1761491166565,0.001,4059.2,4059.1,3.10301814]
[1761491166766,0.439,4059.2,4059.1,6.48751355]
[1761491166930,0.439,4059.2,4059.1,8.04271355]
[1761491167442,0.439,4059.2,4059.1,4.90571355]
[1761491167628,0.439,4059.2,4059.1,8.04271355]
[1761491171448,0.439,4059.2,4059.1,7.1578003]
[1761491174289,0.439,4059.2,4059.1,4.0208003]
[1761491174493,0.439,4059.2,4059.1,7.1578003]
[1761491176488,0.439,4059.2,4059.1,4.0208003]
[1761491176688,0.439,4059.2,4059.1,7.1578003]
[1761491179464,0.439,4059.2,4059.1,1.5572]
[1761491179668,0.439,4059.2,4059.1,0.002]
[1761491179972,1.18055841,4059.2,4059.1,0.002]
[1761491180689,0.74155841,4059.2,4059.1,0.002]
[1761491182790,0.439,4059.2,4059.1,0.002]
[1761491183718,1.1780901,4059.2,4059.1,0.002]
[1761491184817,0.001,4059.2,4059.1,2.4656003]
[1761491185021,0.1242,4059.2,4059.1,4.0208003]
[1761491185526,0.5908,4059.2,4059.1,4.6932]
[1761491185726,0.5908,4059.2,4059.1,7.1568003]
[1761491186226,0.5908,4059.2,4059.1,4.6932]
[1761491186527,0.5908,4059.2,4059.1,7.1568003]
[1761491187396,0.5908,4059.2,4059.1,4.6932]
[1761491189009,0.5908,4059.2,4059.1,7.1568003]
[1761491190931,0.1242,4059.2,4059.1,7.1568003]
[1761491191552,0.1242,4059.2,4059.1,8.11885149]
[1761491191850,0.001,4059.2,4059.1,9.21666474]
[1761491192013,0.001,4059.2,4059.1,8.11885149]
[1761491193116,0.001,4059.2,4059.1,8.33175149]
[1761491193318,0.001,4059.2,4059.1,9.65819913]
[1761491194116,0.001,4059.2,4059.1,8.33175149]
[1761491194619,0.001,4059.2,4059.1,9.65819913]
[1761491195459,0.001,4059.2,4059.1,11.13619913]
[1761491195618,0.001,4059.2,4059.1,9.65819913]
[1761491196344,0.001,4059.2,4059.1,8.33175149]
[1761491197971,0.001,4059.2,4059.1,10.56108098]
[1761491198173,0.001,4059.2,4059.1,12.33024995]
[1761491198375,0.001,4059.2,4059.1,10.80748098]
[1761491198643,0.001,4059.2,4059.1,12.57664995]
[1761491199306,0.001,4059.2,4059.1,9.32948098]
[1761491199788,0.001,4059.2,4059.1,9.08503149]
[1761491201595,0.001,4059.2,4059.1,9.20823149]
[1761491205020,0.001,4059.2,4059.1,5.61293149]
[1761491205240,0.001,4059.2,4059.1,8.11685149]
[1761491205446,0.001,4059.2,4059.1,8.62373149]
[1761491205621,0.001,4059.2,4059.1,8.83663149]
[1761491206141,0.001,4059.2,4059.1,5.70263149]
[1761491206448,0.001,4059.2,4059.1,8.83663149]
[1761491207155,0.001,4059.2,4059.1,9.08303149]
[1761491208743,0.001,4059.2,4059.1,9.03303149]
[1761491209413,0.001,4059.2,4059.1,10.51103149]
[1761491210541,0.001,4059.2,4059.1,12.28020046]
[1761491211058,0.001,4059.2,4059.1,12.37869945]
[1761491211618,0.001,4059.2,4059.1,12.49940245]
[1761491212844,0.001,4059.2,4059.1,9.15250245]
[1761491213050,0.001,4059.2,4059.1,12.49940245]
[1761491213248,0.001,4059.2,4059.1,12.37869945]
[1761491213461,0.001,4059.2,4059.1,12.06730046]
[1761491213827,0.001,4059.2,4059.1,12.28020046]
[1761491215158,0.001,4059.2,4059.1,12.40340046]
[1761491217227,0.001,4059.2,4059.1,10.63423149]
[1761491218364,0.001,4059.9,4059.1,10.63423149]
[1761491218365,1e-08,4059.9,4059.8,2.46317552]
[1761491218555,1e-08,4059.9,4059.8,7.15137552]
[1761491219166,1e-08,4059.9,4059.8,7.90465552]
[1761491219352,1e-08,4059.9,4059.8,9.59555552]
[1761491219556,1e-08,4059.9,4059.8,9.69403511]
[1761491219736,1e-08,4059.9,4059.8,10.90976404]
[1761491220158,1e-08,4059.9,4059.8,7.77676404]
[1761491220470,1e-08,4059.9,4059.8,10.90976404]
[1761491220769,1e-08,4059.9,4059.8,6.08586404]
[1761491220947,1e-08,4059.9,4059.8,9.21886404]
[1761491222163,1e-08,4059.9,4059.8,10.69686404]
[1761491222345,1e-08,4059.9,4059.8,10.90976404]
[1761491222890,1e-08,4060.7,4060.6,2.46269024]
[1761491223186,1e-08,4060.7,4060.6,7.6434361]
[1761491224395,1e-08,4060.7,4060.6,9.1214361]
[1761491226076,0.47260001,4060.7,4060.6,9.1214361]
[1761491226573,1e-08,4060.7,4060.6,9.1214361]
[1761491226778,0.001,4060.8,4060.7,4.01782959]
[1761491226967,0.001,4060.8,4060.7,6.74698144]
[1761491227167,0.001,4060.8,4060.7,9.87898144]
[1761491228095,1e-08,4060.9,4060.8,2.46256895]
[1761491228600,1e-08,4060.9,4060.8,5.79743739]
[1761491229095,1e-08,4060.9,4060.8,4.01776895]
[1761491229305,1e-08,4060.9,4060.8,5.33158605]
[1761491229509,1e-08,4060.9,4060.8,6.65605449]
[1761491230202,1e-08,4060.9,4060.8,7.36848605]
[1761491233003,1e-08,4060.9,4060.8,7.68411554]
[1761491233163,1e-08,4060.9,4060.8,9.88664043]
[1761491233362,1e-08,4060.9,4060.8,9.98509312]
[1761491233994,1e-08,4060.9,4060.8,8.21826823]
[1761491234996,1e-08,4060.9,4060.8,8.46466823]
[1761491235207,0.2463,4063.6,4062.2,2.46172025]
[1761491235208,0.0184,4063.0,4062.2,2.46172025]
[1761491235400,0.0184,4063.0,4062.5,2.46153846]
[1761491235401,0.01,4062.9,4062.5,2.46153846]
[1761491235695,0.01,4062.9,4062.5,8.02878872]
[1761491235994,0.1352,4062.7,4062.5,8.02878872]
[1761491236289,0.1352,4062.7,4062.5,7.14773846]
[1761491236290,0.0024,4062.6,4062.5,7.14773846]
[1761491237592,0.001,4062.6,4062.5,7.14773846]
[1761491237983,0.0024,4062.6,4062.5,7.14773846]
[1761491239395,0.0024,4062.6,4062.5,7.14673846]
[1761491240004,0.001,4062.6,4062.5,8.44185532]
[1761491240494,0.001,4062.6,4062.5,2.46153846]
[1761491240495,0.0024,4062.6,4062.5,2.46153846]
[1761491241184,0.0024,4062.6,4062.5,4.01673846]
[1761491242188,0.0024,4062.6,4062.5,1.5552]
[1761491242376,0.0024,4062.6,4062.5,4.01673846]
[1761491245887,0.0024,4062.6,4062.5,2.46153846]
[1761491246082,0.0024,4062.6,4062.5,7.14673846]
[1761491252390,0.0024,4062.6,4062.5,4.01673846]
[1761491252611,0.0024,4062.6,4062.5,7.14573846]
[1761491254606,0.0024,4062.6,4062.5,1.5552]
[1761491254817,0.1256,4062.6,4062.5,1.5552]
[1761491257805,0.1256,4062.6,4061.1,0.88105026]
[1761491258004,2.46180472,4062.1,4061.3,2.46225411]
[1761491258203,0.1232,4061.7,4061.4,3.129]
[1761491258409,0.1232,4061.7,4061.4,5.59119058]
[1761491258597,0.2183,4061.6,4061.5,1.5552]
[1761491259137,0.2183,4061.6,4061.5,4.01734452]
[1761491259509,0.2183,4061.6,4061.4,1.5552]
[1761491259709,0.2183,4061.6,4061.5,7.14634452]
[1761491260211,0.2183,4061.6,4061.5,7.14834452]
[1761491262468,0.2183,4061.8,4061.6,2.4620839]
[1761491262639,0.2183,4061.8,4061.7,2.46202329]
[1761491263536,0.2205,4061.8,4061.7,2.46202329]
[1761491265056,0.2183,4062.3,4062.0,2.46184145]
[1761491265256,0.3415,4062.3,4062.2,2.46172025]
[1761491265456,0.3415,4062.3,4061.8,2.46191814]
[1761491265657,0.0022,4062.2,4061.9,4.01707919]
[1761491266158,0.0022,4062.2,4062.0,1.5552]
[1761491266566,0.0022,4062.2,4061.9,2.46187919]
[1761491266865,0.0022,4062.2,4062.0,1.5552]
[1761491268660,0.0022,4062.2,4062.0,4.0170041]
[1761491269155,0.0022,4062.2,4062.0,1.5552]
[1761491269360,0.0022,4062.2,4062.0,4.01704074]
[1761491269983,0.0022,4062.2,4062.1,2.46178085]
[1761491270260,0.1254,4062.2,4062.1,2.46178085]
[1761491271458,0.1232,4062.2,4062.1,2.46178085]
[1761491272083,0.001,4062.6,4062.2,2.46170129]
[1761491272372,0.0043,4062.5,4062.4,2.46153997]
[1761491272577,0.1242,4062.6,4062.5,4.01673846]
[1761491272960,0.1285,4062.6,4062.5,4.01673846]
[1761491273656,0.1285,4062.6,4062.5,2.46153846]
[1761491274504,0.1285,4062.6,4062.0,0.1232]
[1761491274674,0.0043,4062.5,4062.1,3.128]
[1761491274857,0.0043,4062.5,4062.2,1.5552]
[1761491275058,0.0043,4062.5,4062.2,4.01688553]
[1761491276386,0.0043,4062.5,4062.2,4.01690992]
[1761491277383,0.0043,4062.5,4062.2,1.5552]
[1761491278870,0.27800708,4062.5,4062.1,0.002]
[1761491279069,0.0043,4062.5,4062.1,0.002]
[1761491279406,0.4647,4062.4,4062.1,0.002]
[1761491279991,2.92630092,4062.4,4062.1,0.002]
[1761491280613,0.4647,4062.3,4062.1,0.002]
[1761491280918,0.0999,4062.5,4062.1,0.002]
[1761491281235,0.26975921,4062.4,4062.1,0.002]
[1761491283080,0.0122,4062.3,4062.1,0.002]
[1761491283600,0.0999,4062.5,4062.1,0.002]
[1761491283785,0.001,4062.6,4062.2,2.46166334]
[1761491283994,0.1484,4062.6,4062.2,2.46166334]
[1761491284396,0.001,4062.6,4062.2,2.46172025]
[1761491284609,0.1232,4062.3,4062.2,2.46172025]
[1761491286634,0.001,4062.6,4062.5,2.46153846]
[1761491287177,0.001,4062.6,4062.5,4.47143846]
[1761491289216,0.001,4062.6,4062.5,4.01673846]
[1761491289579,0.001,4062.6,4062.5,1.5552]
[1761491289781,0.2232,4062.6,4062.2,0.88105026]
[1761491289981,0.2232,4062.6,4062.1,0.002]
[1761491289982,0.1232,4062.3,4062.1,4.01897325]
[1761491290186,0.1232,4062.3,4062.1,1.5572]
[1761491290485,0.2222,4062.3,4062.2,2.46172025]
[1761491290686,0.2222,4062.3,4062.1,4.01898002]
[1761491291585,0.1232,4062.3,4062.2,2.46172025]
[1761491296185,0.1232,4062.3,4062.2,3.58178734]
[1761491296391,0.1242,4062.5,4062.4,2.46159905]
[1761491296723,0.001,4062.5,4062.4,7.14279905]
[1761491297018,0.001,4062.5,4062.4,7.60849905]
[1761491298021,0.001,4062.5,4062.4,7.14279905]
[1761491300429,0.001,4062.5,4062.4,8.84870099]
[1761491301932,0.001,4062.5,4062.4,8.38300099]
[1761491302791,0.001,4062.5,4062.4,4.01679905]
[1761491302991,0.001,4062.5,4062.4,7.14279905]
[1761491307928,0.001,4062.5,4062.4,7.60849905]
[1761491308793,0.001,4062.5,4062.4,7.14279905]
[1761491309035,0.001,4062.5,4062.4,7.60849905]
[1761491309335,0.001,4062.5,4062.4,8.848701]
[1761491312330,0.001,4062.5,4062.4,9.72975126]
[1761491312542,0.001,4062.5,4062.4,9.73175126]
[1761491313438,0.001,4062.5,4062.4,8.850701]
[1761491321379,0.001,4062.5,4062.4,10.1722764]
[1761491321531,0.001,4062.5,4062.4,8.973901]
[1761491325572,0.001,4062.5,4062.4,8.970901]
[1761491326775,0.001,4062.5,4062.4,5.847901]
[1761491326970,0.001,4062.5,4062.4,8.970901]
[1761491327151,0.001,4062.5,4062.4,8.505201]
[1761491327866,0.001,4062.5,4062.4,9.83169918]
[1761491329342,0.001,4062.5,4062.4,10.27369918]
[1761491332955,0.001,4062.5,4062.4,8.947201]
[1761491333779,0.001,4062.5,4062.4,8.505201]
[1761491333947,0.001,4062.5,4062.4,8.947201]
[1761491335849,0.001,4062.5,4062.4,8.505201]
[1761491336777,0.001,4062.5,4062.4,8.947201]
[1761491339063,0.001,4062.5,4062.4,8.505201]
[1761491339774,0.001,4062.5,4062.4,7.26399905]
[1761491340273,0.001,4062.5,4062.4,4.14199905]
[1761491340582,0.001,4062.5,4062.4,7.26399905]
[1761491341046,0.001,4062.5,4062.4,8.5910585]
[1761491341248,0.001,4062.5,4062.4,7.26399905]
[1761491341454,0.001,4062.5,4062.4,8.5910585]
[1761491341758,0.001,4062.5,4062.4,7.26399905]
[1761491341977,0.001,4062.5,4062.4,9.71942637]
[1761491342381,0.001,4062.5,4062.4,8.5910585]
[1761491344785,0.001,4062.5,4062.4,9.0621585]
[1761491344990,0.001,4062.5,4062.4,8.5910585]
[1761491345164,0.001,4062.5,4062.4,7.73509905]
[1761491347060,0.001,4062.5,4062.4,9.21209905]
[1761491347375,0.001,4062.5,4062.4,10.42695098]
[1761491348187,0.001,4062.5,4062.4,12.19594085]
[1761491349007,0.001,4062.5,4062.4,12.44234085]
[1761491349378,0.001,4062.5,4062.4,14.55335098]
[1761491349616,1e-08,4063.4,4063.3,2.67985382]
[1761491349917,1e-08,4063.4,4063.3,7.7482392]
[1761491350213,1e-08,4063.4,4063.3,8.2172392]
[1761491351407,1e-08,4063.4,4063.3,7.5284392]
[1761491352002,1e-08,4063.4,4063.3,4.4074392]
[1761491352179,1e-08,4063.4,4063.3,7.26045382]
[1761491352379,1e-08,4063.4,4063.3,8.58549235]
[1761491353403,1e-08,4063.4,4063.3,7.26045382]
[1761491353714,1e-08,4063.4,4063.3,8.58510388]
[1761491354115,1e-08,4063.4,4063.3,8.58487006]
[1761491356585,1e-08,4063.4,4063.3,7.26045382]
[1761491358307,1e-08,4063.4,4063.3,8.36505401]
[1761491359389,1e-08,4063.4,4063.3,9.84205401]
[1761491359588,1e-08,4063.4,4063.3,8.36505401]
[1761491360517,1e-08,4063.4,4063.3,9.68947025]
[1761491361019,1e-08,4063.4,4063.3,8.36505401]
[1761491362321,1e-08,4063.4,4063.3,8.83405401]
[1761491362620,1e-08,4063.4,4063.3,10.15847025]
[1761491365326,1e-08,4063.4,4063.3,9.68947025]
[1761491368836,1e-08,4063.4,4063.3,10.15847025]
[1761491370648,1e-08,4063.4,4063.3,10.45622003]
[1761491371243,1e-08,4063.4,4063.3,10.15847025]
[1761491372120,1e-08,4063.4,4063.3,8.83405401]
[1761491374813,1e-08,4063.4,4063.3,8.36505401]
[1761491376644,1e-08,4063.4,4063.3,7.25845382]
[1761491377734,1e-08,4063.4,4063.3,4.13945382]
[1761491377925,0.09900001,4063.4,4063.3,7.25845382]
[1761491378126,0.09900001,4063.4,4063.3,8.58537202]
[1761491380321,0.09900001,4063.4,4063.3,6.46493613]
[1761491380544,0.09900001,4063.4,4063.3,5.58005382]
[1761491381052,0.09900001,4063.4,4063.3,7.13725382]
[1761491381837,0.09900001,4063.4,4063.3,4.01825382]
[1761491382347,0.09900001,4063.4,4063.3,7.13725382]
[1761491382549,0.09900001,4063.4,4063.3,4.01825382]
[1761491382735,0.09900001,4063.4,4063.3,7.13725382]
[1761491391869,0.09900001,4063.4,4063.3,4.01825382]
[1761491392062,0.09900001,4063.4,4063.3,7.13625382]
[1761491394572,0.09900001,4063.4,4063.3,4.01825382]
[1761491394770,0.09900001,4063.4,4063.3,0.002]
[1761491394964,0.22220001,4063.4,4063.3,0.002]